Cogmind - Beta 17 @@@ ROGUE MODE // 2026.08.01 @ 22:25:53 Player: mischief_2000 Result: Establishing 0b11! Performance ------------- Evolutions (9) 4500 Regions Visited (27) 5400 Robots Destroyed (422) 2110 Value Destroyed (22192) 22192 Prototype IDs (375) 7500 Alien Tech Used (0) 0 Bonus (33959) 33959 TOTAL SCORE: 75661 Bonus ------- High Alert Combat Kills 2422 Follower Combat Kills 1256 Entered Garrisons 600 Acquired ECA 300 Met Warlord at Base 500 MAIN.C Attacked Warlord 500 Warlord Defense Kills 2996 Met R17 at Cetus 500 Destroyed MAIN.C Guards 500 Met MAIN.C 5000 Destroyed MAIN.C Shell 5000 Destroyed MAIN.C 10000 Met Warlord at Command 2000 Win 3000 Friendly Fire -615 Cogmind --------- Core Integrity 750/1600 Matter 47/300 Energy 815/825 System Corruption 43% Temperature Cool (59) Movement Treading (270) Ox1 Location 0b11 Command Parts ------- > --- POWER (4) -------- Antimatter Reactor Quantum Reactor Reinforced Quantum Reactor > --- PROPULSION (6) --- Heavy Siege Treads Heavy Siege Treads Heavy Siege Treads > --- UTILITY (11) ----- High-capacity Storage Unit Graphene Brace Improved Hacking Suite > --- WEAPON (4) ------- Enhanced Quantum Rifle Heavy Autocannon > --- INVENTORY (20) --- Heavy Siege Treads Advanced Weapon Cycler Long-range Tractor Beam Vortex Catalyst Activator (4) Improved Plasma Cutter Peak State ------------ > --- POWER ------------ Light Particle Reactor Quantum Reactor Light Quantum Reactor Light Quantum Reactor > --- PROPULSION ------- Biometal Leg Enhanced Biometal Leg Enhanced Biometal Leg Centrium Leg Heavy Shield Leg > --- UTILITY ---------- Experimental Power Amplifier Advanced Cooling System Advanced Cooling System High-capacity Storage Unit Advanced Signal Interpreter Experimental Reaction Control System Advanced Phase Shifter Graphene Brace Advanced Force Field Advanced Hacking Suite Long-range Tractor Beam > --- WEAPON ----------- Enhanced Nova Cannon Compact Mass Driver Compact Mass Driver Compact Mass Driver > --- INVENTORY -------- Biometal Leg Enhanced Biometal Leg Centrium Leg Advanced Cooling System Advanced Sensor Array Seismic Detector ECM Suite Powered Armor Advanced Hacking Suite Advanced Hacking Suite Vortex Driver Vortex Driver Enhanced Nova Cannon Heavy Autocannon Vortex Catalyst Activator Improved Plasma Cutter RU-N14's Throwing Claymores v3 [Rating: 210] Favorites ----------- Power Quantum Reactor Engine Improved Deuterium Engine Power Core Neutrino Core Reactor Quantum Reactor Propulsion Carbon-fiber Leg Treads Light Treads Leg Carbon-fiber Leg Wheel Armored Huge Wheel Utility High-capacity Storage Unit Device Improved Heat Sink Storage High-capacity Storage Unit Processor Advanced Melee Analysis Suite Hackware Ghost Barrier Protection Improved Medium Armor Plating Weapon Power Sword Energy Gun High-powered Field Laser Energy Cannon Enhanced Nova Cannon Ballistic Gun Railgun Ballistic Cannon Compact Mass Driver Launcher Long-range Missile Launcher Special Weapon RU-N14's Throwing Claymores v3 Impact Weapon Great Maul Slashing Weapon Power Sword Piercing Weapon Heavy Pick Build | -11 -10 -9 -8 -8 -8 -8 -8 -7 -7 -6 -6 -6 -6 -5 -5 -5 -5 -5 -4 -4 -4 -4 -4 -3 -2 -1 -1 ------- Run | Yrd Mat Mat Mat Gar Mat Sto Gar Fac Gar Fac Low Low Zio Pro Fac Upp Upp War Pro Fac Ext Cet Arc Res Res Acc Com Slots Evolved 18 | . . 2 2 . . . . 2 . 2 . . . . 2 . . . . 2 . . . 2 2 2 . Power 3 | . . . . . . . . . . . . . . . 1 . . . . . . . . . 1 1 . Propulsion 4 | . . 1 . . . . . 1 . 1 . . . . . . . . . 1 . . . . . . . Utility 9 | . . 1 1 . . . . . . 1 . . . . 1 . . . . 1 . . . 2 1 1 . Weapon 2 | . . . 1 . . . . 1 . . . . . . . . . . . . . . . . . . . Parts Attached 362 | 7 5 26 11 20 5 5 15 3 18 38 1 5 5 6 34 2 . 22 4 11 5 2 9 18 46 19 20 Power 46 | 1 1 4 1 1 . 1 2 . 4 2 1 1 1 1 8 . . 1 . 1 . . 1 2 5 3 4 Engine 17 | 1 1 4 1 . . 1 2 . 2 2 1 1 . . 1 . . . . . . . . . . . . Core 12 | . . . . 1 . . . . 2 . . . 1 1 7 . . . . . . . . . . . . Reactor 17 | . . . . . . . . . . . . . . . . . . 1 . 1 . . 1 2 5 3 4 Propulsion 93 | 2 2 7 2 6 2 2 4 1 4 14 . 3 1 2 10 . . 5 . 1 2 . 1 1 14 2 5 Treads 31 | . 2 7 2 6 2 2 3 1 1 1 . . . . . . . . . . . . . . . . 4 Leg 59 | 2 . . . . . . . . 1 13 . 3 1 2 10 . . 5 . 1 2 . 1 1 14 2 1 Wheel 3 | . . . . . . . 1 . 2 . . . . . . . . . . . . . . . . . . Hover . | . . . . . . . . . . . . . . . . . . . . . . . . . . . . Flight . | . . . . . . . . . . . . . . . . . . . . . . . . . . . . Utility 129 | 2 1 8 4 7 . 2 6 . 5 11 . . 1 2 11 2 . 7 3 5 3 1 3 7 22 10 6 Device 73 | 1 . 3 2 2 . 1 5 . 2 5 . . . 2 4 1 . 4 1 3 1 . 1 5 19 7 4 Storage 6 | 1 1 1 . . . . 1 . . . . . . . 1 . . . . 1 . . . . . . . Processor 13 | . . 2 . . . . . . . 4 . . 1 . 1 1 . 2 . . . . . 1 . . 1 Hackware 12 | . . . 1 1 . . . . . . . . . . 4 . . 1 . . . . . 1 . 3 1 Protection 25 | . . 2 1 4 . 1 . . 3 2 . . . . 1 . . . 2 1 2 1 2 . 3 . . Artifact . | . . . . . . . . . . . . . . . . . . . . . . . . . . . . Weapon 94 | 2 1 7 4 6 3 . 3 2 5 11 . 1 2 1 5 . . 9 1 4 . 1 4 8 5 4 5 Energy Gun 36 | 1 . 3 3 3 3 . 1 2 1 5 . . 1 . . . . 2 . 2 . 1 3 2 . . 3 Energy Cannon 11 | . . 2 . . . . . . 1 . . . . . . . . 1 . 2 . . . 3 . 2 . Ballistic Gun 15 | 1 1 2 1 1 . . . . 2 2 . . . . . . . . . . . . 1 2 . 2 . Ballistic Cannon 7 | . . . . . . . . . 1 . . . . . . . . . 1 . . . . . 4 . 1 Launcher 4 | . . . . . . . 1 . . . . . . . 1 . . 1 . . . . . . . . 1 Special Weapon 10 | . . . . 1 . . . . . . . . . 1 2 . . 5 . . . . . 1 . . . Impact Weapon 2 | . . . . 1 . . . . . . . 1 . . . . . . . . . . . . . . . Slashing Weapon 7 | . . . . . . . 1 . . 3 . . 1 . 1 . . . . . . . . . 1 . . Piercing Weapon 2 | . . . . . . . . . . 1 . . . . 1 . . . . . . . . . . . . Special Melee Weapon . | . . . . . . . . . . . . . . . . . . . . . . . . . . . . Unidentified Prototypes 38 | . . 3 2 . 1 . . 1 1 2 . . 1 2 1 . . 11 1 1 . 1 . 3 6 1 . Corrupted Parts 11 | . . . . . . . . . . . . 1 1 2 3 . . . . . . . . . 4 . . System Corruption 62 | . . . . . . . . . . . . 1 1 8 32 . . . . . . . . . 20 . . Parts Lost 78 | . 3 10 . 3 . . 3 . 5 10 . 3 . . 11 . . . . 1 . . . 5 1 6 17 Power 12 | . 1 . . . . . . . 1 1 . . . . 2 . . . . . . . . . . 3 4 Propulsion 23 | . . 5 . 1 . . 1 . 3 7 . 2 . . 2 . . . . . . . . . . 1 1 Utility 28 | . 1 3 . 2 . . 1 . . 1 . 1 . . 4 . . . . . . . . 2 1 2 10 Weapon 15 | . 1 2 . . . . 1 . 1 1 . . . . 3 . . . . 1 . . . 3 . . 2 Highest Loss Streak 8 | . 2 3 . 2 . . 2 . 2 7 . 2 . . 4 . . . . 1 . . . 3 1 4 8 To Critical Strikes 2 | . . . . . . . . . . . . 1 . . . . . . . . . . . 1 . . . Average Backups 16 | 5 10 18 19 18 19 19 18 17 18 19 19 19 19 19 15 8 9 11 15 16 17 17 16 16 16 16 11 Power . | . . . 1 . . . 1 1 1 1 1 2 1 . . . . . 1 1 1 2 . . . . . Propulsion 3 | 3 6 6 4 5 4 4 3 3 3 2 1 1 2 2 2 1 1 1 1 3 4 4 3 1 1 2 1 Utility 5 | . . 4 5 6 8 7 6 6 7 10 10 10 9 9 6 3 3 2 3 3 2 2 3 6 7 4 3 Weapon 5 | 1 1 6 6 5 5 5 6 6 5 4 5 4 4 5 3 2 3 6 8 8 8 8 8 7 6 7 4 Tool/Special . | . . . . . . . . . . . . . . . . . . . . . . . . . . . . Unused Backups 59 | . 1 2 8 8 1 . . . 2 4 . 1 3 1 3 . . 4 . 1 . 2 1 2 10 . 5 Power 6 | . . . 2 . . . . . . . . . . 1 . . . . . 1 . 1 1 . . . . Propulsion 12 | . . 1 1 3 . . . . . 1 . . . . 1 . . . . . . 1 . . 2 . 2 Utility 19 | . . . 1 2 1 . . . 2 2 . . 1 . 2 . . 1 . . . . . 1 5 . 1 Weapon 21 | . . 1 4 3 . . . . . 1 . 1 2 . . . . 3 . . . . . 1 3 . 2 Tool/Special 1 | . 1 . . . . . . . . . . . . . . . . . . . . . . . . . . Average Slot Usage (%) 89 | . 95 90 94 99 99 100 90 90 90 92 99 99 99 100 82 70 70 77 88 82 84 84 83 85 95 93 73 Engine 3 | . 14 10 9 6 . 3 9 7 4 6 6 6 5 6 . 5 5 3 . . . . . . . . . Core 1 | . . . . 2 9 5 . . 2 . . . . . 9 5 5 3 . . . . . . . . . Reactor 3 | . . . . . . . . . . . . . . . . . . 1 5 5 5 5 9 9 12 13 14 Treads 8 | . 18 32 27 27 27 27 10 15 13 4 . . . . . . . . . . . . . . . . 9 Leg 14 | . 9 . . . . . . . . 21 33 33 33 33 19 17 17 18 29 20 21 21 21 19 24 20 4 Wheel 1 | . . . . . . . 8 7 6 3 . . . . . . . . . . . . . . . . . Device 15 | . 1 9 5 12 18 18 22 23 19 11 6 5 6 6 7 11 11 12 6 15 16 21 15 16 27 33 28 Storage 6 | . 23 11 9 9 9 9 9 7 7 6 6 6 6 6 5 5 5 5 5 5 5 5 5 4 4 4 4 Processor 5 | . . 2 . . . . . . . 9 13 13 13 13 14 15 17 12 5 4 . . . 3 4 4 2 Hackware 1 | . . . 8 2 . . . . . . . . . . . 1 . 1 5 5 4 . . 3 1 . . Protection 4 | . . 3 9 10 9 9 3 . 3 3 5 6 6 6 3 . . . 9 5 9 10 9 7 3 1 . Energy Gun 8 | . 13 7 15 21 26 26 26 23 13 6 . . . . . . . 3 10 9 10 11 15 8 1 . 1 Energy Cannon 1 | . . 7 1 . . . . . 5 . . . . . . . . . . 4 7 5 1 1 1 4 2 Ballistic Gun 2 | . 14 6 8 5 . . . . 4 5 . . . . . . . . . . . . 3 7 . 4 2 Ballistic Cannon 1 | . . . . . . . . . 4 . . . . . . . . . . . . . . . 12 6 2 Impact Weapon 1 | . . . . . . . . . . . . 5 5 5 4 5 5 2 . . . . . . . . . Slashing Weapon 3 | . . . . . . . . 5 . 10 26 20 19 20 8 . . . . . . . . . . . . Peak Build Rating 210 | 7 9 23 34 36 39 40 50 53 62 73 73 73 73 71 93 72 71 149 143 151 151 151 151 161 192 210 195 Average Rating 91 | 5 7 17 28 31 37 39 47 52 55 65 72 65 65 66 81 71 71 100 134 146 148 149 141 151 173 192 161 On Entrance 81 | . 7 9 19 34 36 39 40 47 53 59 68 73 65 66 69 71 71 71 140 143 147 145 151 140 151 192 179 Avg Prop Armor Cover (%) 11 | . . . . . . . 8 15 11 12 . . . . . . . . . . . . . . . . 9 Naked Turns . | . . . . . . . . . . . . . . . . . . . . . . . . . . . . Heaviest Build 206 | 14 33 63 67 63 68 70 72 68 91 96 74 75 75 79 88 55 55 127 146 137 133 125 137 135 155 178 206 Greatest Support 210 | 20 40 66 66 63 60 60 60 28 28 93 83 83 75 80 90 85 85 145 145 135 135 135 135 135 178 178 210 Greatest Overweight (x) 3 | 1 . . 1 1 1 1 2 2 3 3 . 1 . 1 1 . . 1 1 1 1 . 1 . 1 . 2 Average Overweight (x) . | . . . . . 1 1 1 2 2 1 . . . . . . . . . . . . . . . . . Largest Inventory Capacity 20 | 8 15 20 20 20 20 20 20 20 20 20 20 20 20 20 20 15 15 20 20 20 20 20 20 20 20 20 20 Average Capacity 19 | 7 12 19 20 20 20 20 20 20 20 20 20 20 20 20 19 15 15 16 20 20 20 20 20 20 20 20 20 Most Carried 20 | 7 15 20 20 20 20 20 20 20 20 20 20 20 20 20 20 15 15 20 20 20 20 20 20 20 20 20 20 Average Carried 18 | 5 10 18 19 19 20 19 19 19 19 19 19 19 19 19 17 14 14 14 19 19 19 19 19 19 19 18 15 Final Capacity 20 | 8 15 20 20 20 20 20 20 20 20 20 20 20 20 20 15 15 15 20 20 20 20 20 20 20 20 20 20 Final Carried 20 | 7 14 17 19 20 20 20 20 20 20 19 20 20 19 20 10 15 13 19 20 20 20 20 20 19 20 20 20 Class Distribution -------------------- 29% | Scavenger-Tank 16% | Scavenger-Gladiator 10% | Scavenger-Gunner 9% | Generator-Tank 8% | Mutant 6% | Hacker-Tank 6% | Scavenger-Mutant 3% | Tank 3% | Gladiator Dominant Class ---------------- Mutant | -10/Materials Mutant | -9/Materials Tank | -8/Materials Scavenger-Tank | -8/Garrison Scavenger-Tank | -8/Materials Scavenger-Tank | -8/Storage Scavenger-Gunner | -8/Garrison Scavenger-Gunner | -7/Factory Scavenger-Gunner | -7/Garrison Scavenger-Gladiator | -6/Factory Scavenger-Gladiator | -6/Lower Caves Scavenger-Gladiator | -6/Lower Caves Scavenger-Gladiator | -6/Zion Scavenger-Gladiator | -5/Proximity Caves Gladiator | -5/Factory Scavenger-Mutant | -5/Upper Caves Scavenger-Mutant | -5/Upper Caves Scavenger-Gunner | -5/Warlord Scavenger-Tank | -4/Proximity Caves Hacker-Tank | -4/Factory Hacker-Tank | -4/Extension Scientist-Tank | -4/Cetus Scavenger-Tank | -4/Archives Scavenger-Tank | -3/Research Scavenger-Tank | -2/Research Generator-Tank | -1/Access Generator-Tank | -1/Command Resources | -11 -10 -9 -8 -8 -8 -8 -8 -7 -7 -6 -6 -6 -6 -5 -5 -5 -5 -5 -4 -4 -4 -4 -4 -3 -2 -1 -1 ----------- Run | Yrd Mat Mat Mat Gar Mat Sto Gar Fac Gar Fac Low Low Zio Pro Fac Upp Upp War Pro Fac Ext Cet Arc Res Res Acc Com Matter Collected 9325 | 149 206 588 281 468 128 89 235 . 669 495 20 103 81 106 636 47 . 367 79 234 242 163 230 535 870 1517 787 Remotely 1894 | . . . . . . . . . . . . . . . . . . . . . . . . . 480 1087 327 Salvage Created 19299 | 173 387 977 615 1231 461 675 1697 . 1423 1614 271 301 . 132 1833 153 40 558 477 695 575 174 549 1633 188 1716 751 Parts 794 | 15 15 64 31 54 20 30 51 . 61 68 10 9 . 8 75 2 . 16 12 32 14 1 30 72 7 83 14 Haulers Intercepted 18 | . . 2 4 . 1 1 . . . 1 . . . . 2 . . . . 2 1 . . 2 1 1 . Recyclers Shooed 7 | 1 . 1 . . 1 . . . . . . . . . . . . . . . . . . . . 4 . Parts Field Recycled . | . . . . . . . . . . . . . . . . . . . . . . . . . . . . Retrieved Matter . | . . . . . . . . . . . . . . . . . . . . . . . . . . . . Parts Self-Destructed 34 | . . . . . . . . . . . 6 6 . 9 . 2 2 . 9 . . . . . . . . Prevented 11 | . . . . . . . . . . . . 2 . 5 . 3 1 . . . . . . . . . . Parts Restored . | . . . . . . . . . . . . . . . . . . . . . . . . . . . . Kills | -11 -10 -9 -8 -8 -8 -8 -8 -7 -7 -6 -6 -6 -6 -5 -5 -5 -5 -5 -4 -4 -4 -4 -4 -3 -2 -1 -1 ------- Run | Yrd Mat Mat Mat Gar Mat Sto Gar Fac Gar Fac Low Low Zio Pro Fac Upp Upp War Pro Fac Ext Cet Arc Res Res Acc Com Combat Hostiles Destroyed 325 | . 7 23 6 23 4 13 26 . 27 19 4 5 . 4 35 . . 24 13 17 5 4 3 26 1 25 11 Melee 43 | . . . . . . . . . . 15 4 4 . 1 19 . . . . . . . . . . . . Guns 141 | . 7 14 6 22 3 12 24 . 11 4 . . . . . . . 7 8 5 . 1 . 10 . 4 3 Cannons 65 | . . 8 . . . . . . 12 . . . . 1 3 . . . . 2 5 2 3 5 1 18 5 AOE 64 | . . . . . . . . . 4 . . . . 2 9 . . 17 5 10 . . . 11 . 3 3 Classes Destroyed 22 | 2 2 6 2 . . . 2 . 1 . 1 2 . 1 . . . 2 . . . . . . . 1 . Worker 12 | . . 2 . . . . . . . 3 . . . . . . . . . 3 . . . 1 . 3 . Builder 9 | . . . 1 . . 1 . . . 1 . . . . 1 . . . . . . . . 2 . 3 . Tunneler 5 | 5 . . . . . . . . . . . . . . . . . . . . . . . . . . . Hauler 18 | . . 2 4 . 1 1 . . . 1 . . . . 2 . . . . 2 1 . . 2 1 1 . Recycler 13 | 1 . 1 . . 2 . . . . 3 . . . . 1 . . . . . 1 . . 3 . 1 . Minesweeper 2 | . . . . . . . . . . . . . . 1 . 1 . . . . . . . . . . . Operator 16 | . . 2 1 . 1 . . . . 1 . . . . 1 . . . . . . . 9 1 . . . Watcher 20 | . 1 3 1 1 . 2 . . . 2 . . . . 1 . . . . 2 . 1 . 1 . 4 1 Swarmer 66 | . . 11 . 5 . 3 . . 3 4 3 . . 3 12 . . . 5 8 . . . 5 . 4 . Cutter 3 | . . . . . . . . . 3 . . . . . . . . . . . . . . . . . . Grunt 123 | . 7 8 3 9 2 7 16 . 10 7 . 2 . . 12 . . 16 7 4 3 . . 8 1 . 1 Brawler 2 | . . . . . . . . . . . . . . . . . . 2 . . . . . . . . . Duelist 6 | . . 2 1 1 . 1 . . . 1 . . . . . . . . . . . . . . . . . Protector 2 | . . . . . . . . . . . . . . . . . . 2 . . . . . . . . . Sentry 44 | . . 2 . 8 2 2 5 . 3 4 1 . . . 5 . . . 1 1 2 . 3 2 . 2 1 Specialist 3 | . . . 2 . . . . . . . . . . . . . . 1 . . . . . . . . . Hunter 29 | . . . . . . . 2 . 4 2 . . . 1 3 . . . . 2 . . . 4 . 9 2 Programmer 30 | . . . . . . . 3 . 4 1 . . . . 3 . . . . 2 . . . 7 . 9 1 Heavy 2 | . . . . . . . . . . . . . . . . . . . . . . . . . . 1 1 Cetus Guard 4 | . . . . . . . . . . . . . . . . . . . . . . 4 . . . . . M Guard 2 | . . . . . . . . . . . . . . . . . . . . . . . . . . . 2 Combat Programmer 1 | . . . . . . . . . . . . . . . . . . . . . . . . . . . 1 Striker 3 | . . . . . . . . . . . . . . . . . . 3 . . . . . . . . . Packrat 1 | . . . . . . . . . . . 1 . . . . . . . . . . . . . . . . Samaritan 3 | . . . . . . . . . . . 1 . . . . 1 1 . . . . . . . . . . Thug 1 | . . . . . . . . . . . . 1 . . . . . . . . . . . . . . . Savage 1 | . . . . . . . . . . . . 1 . . . . . . . . . . . . . . . Butcher 1 | . . . . . . . . . . . . . . . . . . . . . . 1 . . . . . Mutant 1 | . . . . . . . . . . . . 1 . . . . . . . . . . . . . . . Infiltrator 1 | . . . . . . . . . 1 . . . . . . . . . . . . . . . . . . Best Kill Streak 15 | 6 2 9 3 4 6 3 6 . 6 11 3 3 . 3 12 1 . 13 14 6 3 4 6 15 1 6 3 Combat Bots Only 14 | . 2 7 2 4 1 3 6 . 6 4 3 3 . 3 11 . . 13 14 5 3 3 2 9 1 6 3 Max Kills in Single Turn 6 | 1 1 2 1 1 1 2 2 . 2 1 1 1 . 3 4 1 1 4 2 5 2 2 1 6 1 3 2 Gunslinging 1 | . . . . . . . 1 . . . . . . . . . . 1 . . . . . . . . . Exploded 4 | . . . . . . . . . 2 . . . . 2 3 . . 4 2 4 . . . 3 . 3 2 Melee 1 | . . . . . . . . . . 1 1 1 . 1 1 . . . . . . . . . . . . Uniques/NPCs Destroyed 2 | . . . . . . . . . . . . . . . . . . . . . . . . . . . 2 MAIN.C Shell (-1/Command) MAIN.C (-1/Command) Combat | -11 -10 -9 -8 -8 -8 -8 -8 -7 -7 -6 -6 -6 -6 -5 -5 -5 -5 -5 -4 -4 -4 -4 -4 -3 -2 -1 -1 -------- Run | Yrd Mat Mat Mat Gar Mat Sto Gar Fac Gar Fac Low Low Zio Pro Fac Upp Upp War Pro Fac Ext Cet Arc Res Res Acc Com Hostile Shots Fired 2215 | . 60 185 62 136 4 51 117 . 167 196 27 50 . 17 245 . 16 26 40 89 28 59 11 193 14 291 131 Missed 723 | . 12 55 19 31 1 12 33 . 37 62 13 16 . 9 65 . 8 16 12 37 9 32 9 54 2 130 49 Hits 1492 | . 48 130 43 105 3 39 84 . 130 134 14 34 . 8 180 . 8 10 28 52 19 27 2 139 12 161 82 Melee 23 | . . 15 1 3 . . . . . . . 3 . . . . . . . 1 . . . . . . . Projectile 1469 | . 48 115 42 102 3 39 84 . 130 134 14 31 . 8 180 . 8 10 28 51 19 27 2 139 12 161 82 AOE 8 | . . . . . . . . . 3 2 . . . . . . . . . . . . . . . . 3 Critical Strikes 80 | . 1 4 3 4 . 1 5 . 1 2 . 8 . . 16 . 1 . 1 2 2 2 . 10 2 9 6 Actively Blocked 15 | . . . . . . . . . . . . . . . . . . . . . . . . . . 9 6 Part Disruptions 9 | . . . . . . . . . . . . 1 . . . . . 3 . . . . . 1 . 3 1 Actively Blocked 1 | . . . . . . . . . . . . . . . . . . . . . . . . . . . 1 Damage Taken 27585 | . 647 1696 694 1568 36 392 1339 . 1615 1970 169 620 . 114 4208 . 225 231 455 767 354 689 35 2461 214 2777 4309 Core 2868 | . 111 257 67 58 11 65 155 . 204 200 . 142 . 33 415 . 22 28 13 66 . 34 . 114 23 338 512 Absorbed by Shields 4976 | . . . . . . . . . . . . . . . . . . 51 136 234 146 . . 305 65 1754 2285 Reduced by Siege Mode 214 | . . . . . . . . . . . . . . . . . . . . . . . . . . . 214 Ignored by Resistances 671 | . . . . . 6 32 . . . . . . . . . . . . . . . 137 13 47 109 . 327 Regen/Repaired (Parts) 1369 | . 58 385 . . . . . . . . . . 789 . . . . 58 . 79 . . . . . . . Core Remaining (%) 66 | 100 55 35 . . . . 35 . 70 . . . . 55 . . . . 52 . . . 91 91 98 . 46 Volleys Fired 838 | 22 46 100 39 73 15 32 79 4 67 15 . . . 1 7 . . 17 13 34 23 15 30 53 12 88 53 Largest 4 | 2 2 2 3 3 3 3 3 3 4 4 . . . 1 1 . . 4 2 4 4 4 4 4 4 4 4 Hottest 418 | 70 70 125 183 183 210 210 225 225 330 175 . . . . 39 . . 163 120 353 418 311 349 322 322 348 310 Shots Fired 2293 | 44 90 198 116 219 45 93 228 12 209 51 . . . 1 7 . . 28 24 81 64 47 110 168 44 279 135 Gun 1626 | 44 90 133 115 219 45 93 226 12 121 51 . . . . . . . 18 22 37 38 25 91 138 14 53 41 Cannon 602 | . . 65 1 . . . . . 82 . . . . . . . . . . 32 26 14 19 22 30 222 89 Launcher 38 | . . . . . . . 2 . 6 . . . . . 1 . . 2 2 12 . 8 . . . . 5 Special 27 | . . . . . . . . . . . . . . 1 6 . . 8 . . . . . 8 . 4 . Kinetic 646 | 22 46 80 53 44 . . . . 56 16 . . . . . . . . . . . . 11 69 27 160 62 Thermal 1470 | 22 44 118 63 175 45 93 226 12 147 35 . . . . . . . . . 56 60 39 99 73 17 115 31 Explosive 52 | . . . . . . . . . . . . . . 1 7 . . 10 2 12 . 8 . 8 . 4 . Electromagnetic 25 | . . . . . . . 2 . 6 . . . . . . . . . . . . . . 17 . . . Entropic 100 | . . . . . . . . . . . . . . . . . . 18 22 13 4 . . 1 . . 42 Robot Hit Streak 33 | 6 11 21 14 33 17 14 29 . 11 10 . . . 10 15 . . 9 9 7 15 10 16 9 7 10 19 Robot Miss Streak 9 | 2 5 8 5 5 3 4 3 . 9 2 . . . . 1 . . 5 2 5 4 2 3 3 5 5 6 Penetration Max 1 | . . . . 1 . . . . . . . . . . . . . . . . 1 . . 1 . 1 . Secondary Targets 28 | . 1 2 1 6 . 1 7 . . 2 . . . . . . . 2 5 . . . . 1 . . . Max Gunslinging Chain 1 | . 1 1 1 1 . 1 1 . . 1 . . . . . . . 1 1 . . . . 1 . . . Shots Hit Robots 1509 | 25 59 113 69 115 27 57 134 . 117 98 11 27 . 4 103 4 1 24 19 34 44 32 70 95 16 124 87 Core Hits 792 | 10 25 38 21 47 10 26 53 . 79 42 7 6 . 4 53 1 . 56 29 35 19 28 27 70 8 55 43 Critical Kills 7 | . . 1 1 . . . . . . 1 . . . . 2 . . . . 1 . . . . . 1 . Critical Parts Destroyed 13 | . . . . . . . . . . . . . . 1 3 1 1 2 4 1 . . . . . . . Critical Strikes 123 | 2 5 3 5 11 3 7 21 . 2 6 1 5 . 1 16 1 1 5 4 4 5 2 2 4 1 4 2 Burn 66 | 2 5 2 4 11 3 7 21 . 2 1 . . . . . . . . . 1 2 2 2 1 . . . Meltdown 2 | . . 1 . . . . . . . . . . . . . . . . . 1 . . . . . . . Destroy 3 | . . . 1 . . . . . . 1 . . . . . . . . . . . . . . . 1 . Blast 4 | . . . . . . . . . . . . . . . . . . . . . . . . . 1 3 . Smash 8 | . . . . . . . . . . . . . . 1 5 1 1 . . . . . . . . . . Sever 22 | . . . . . . . . . . 2 1 5 . . 8 . . 3 . . . . . 3 . . . Impale 5 | . . . . . . . . . . 2 . . . . 3 . . . . . . . . . . . . Detonate 7 | . . . . . . . . . . . . . . . . . . 2 4 1 . . . . . . . Sunder 6 | . . . . . . . . . . . . . . . . . . . . 1 3 . . . . . 2 Melee Attacks 322 | . . . . 2 . . 4 8 19 84 15 31 . 4 148 4 3 . . . . . . . . . . Impact 65 | . . . . 2 . . . . . . . 2 . 3 51 4 3 . . . . . . . . . . Slashing 206 | . . . . . . . 4 8 19 68 15 29 . 1 62 . . . . . . . . . . . . Piercing 51 | . . . . . . . . . . 16 . . . . 35 . . . . . . . . . . . . Sneak Attacks 23 | . . . . . . . . . . 11 2 . . 1 6 2 1 . . . . . . . . . . Combat Hostiles 1 | . . . . . . . . . . 1 . . . . . . . . . . . . . . . . . Follow-up Attacks 66 | . . . . . . . . . . 22 5 8 . . 31 . . . . . . . . . . . . Damage Inflicted 64632 | 270 639 1984 1204 2351 559 1283 3169 21 3944 3590 486 978 . 506 6035 331 119 5772 1290 3176 1789 1632 1848 6271 717 6654 8014 Guns 22230 | 270 639 1407 1184 2351 559 1283 2934 21 1311 784 . . . . . . . 928 975 648 701 506 1449 2363 362 839 716 Cannons 14271 | . . 577 20 . . . . . 1205 . . . . . . . . . . 592 1087 399 399 403 355 4439 4795 Explosions 16573 | . . . . . . . . . 302 . . . . 268 1483 . . 4590 315 1936 . 727 . 3219 . 1230 2503 Melee 10648 | . . . . . . . 235 . 1126 2806 486 978 . 193 4374 331 119 . . . . . . . . . . Ramming 1 | . . . . . . . . . . . . . . . . . . . . . 1 . . . . . . Kinetic 8703 | 73 252 716 520 383 . . . . 438 209 . . . . . . . . . . . . 191 1057 392 2517 1955 Thermal 23277 | 197 387 1268 684 1968 559 1283 2934 21 2108 575 . . . . . . . 340 315 1716 1279 905 1657 1358 325 2761 637 Explosive 12205 | . . . . . . . . . . . . . . 268 1483 . . 4250 . 1028 . 727 . 3219 . 1230 . Electromagnetic 623 | . . . . . . . . . 272 . . . . . . . . . . . . . . 351 . . . Impact 2161 | . . . . . . . . . . . . 111 . 193 1407 331 119 . . . . . . . . . . Slashing 8082 | . . . . . . . 235 . 1126 2348 486 867 . 45 2289 . . 254 . . . . . 286 . 146 . Piercing 1314 | . . . . . . . . . . 458 . . . . 856 . . . . . . . . . . . . Entropic 8266 | . . . . . . . . . . . . . . . . . . 928 975 432 509 . . . . . 5422 Highest Corruption 54 | . . 5 . . . 2 5 . 4 . . 4 5 8 54 54 54 54 1 1 3 3 3 8 21 10 49 Average Corruption 9 | . . 5 . . . 2 4 . 3 . . 3 4 7 21 54 54 33 1 1 1 3 2 4 1 7 19 Corruption Purged 9 | . . . . . . . . . . . . . . . . . . . . . . . 3 . . . 6 Corruption Blocked . | . . . . . . . . . . . . . . . . . . . . . . . . . . . . Effects 305 | . . 17 . . . 2 28 . 27 . . 16 4 . 31 18 16 3 3 2 13 5 3 4 7 30 76 Message Errors 66 | . . 5 . . . . 8 . 5 . . 5 . . 3 3 3 . 1 . 5 . . . 1 9 18 Matter Fused 69 | . . 3 . . . . 4 . 7 . . 4 . . 11 2 4 2 1 1 3 1 2 1 2 5 16 Heat Flow Errors 39 | . . 1 . . . 1 3 . 3 . . 2 2 . 4 4 2 . . 1 1 1 1 . 1 3 9 Energy Discharges 47 | . . 1 . . . . 7 . 3 . . 1 2 . 6 4 2 1 . . 2 1 . 1 1 4 11 Parts Rejected 6 | . . . . . . 1 2 . . . . . . . 1 . . . . . . . . . . . 2 Data Loss (minor) 27 | . . 4 . . . . 1 . 3 . . 2 . . 1 3 1 . 1 . 1 . . . 2 2 6 Data Loss (major) 15 | . . 2 . . . . . . 1 . . 1 . . 1 2 . . . . . . . 1 . 5 2 Misfires 8 | . . . . . . . 2 . 1 . . . . . . . . . . . 1 1 . . . . 3 Alerts 8 | . . . . . . . 1 . 1 . . 1 . . 1 . 2 . . . . . . . . . 2 Misdirections 7 | . . . . . . . . . . . . . . . 3 . 2 . . . . . . . . . 2 Weapon Failures 13 | . . 1 . . . . . . 3 . . . . . . . . . . . . 1 . 1 . 2 5 Overload Shots 1 | . . . . . . . . . . . . . . . . . . . . . 1 . . . . . . Overflow Damage 2227 | . . 12 . . . . . . 79 237 . 86 . 68 397 93 119 158 . 322 6 35 . 152 . 426 37 Projectiles 571 | . . 12 . . . . . . . . . . . . 10 . . . . 17 6 32 . 38 . 419 37 Explosions 607 | . . . . . . . . . . . . . . 20 . . . 158 . 305 . 3 . 114 . 7 . Melee 1049 | . . . . . . . . . 79 237 . 86 . 48 387 93 119 . . . . . . . . . . Knockbacks 42 | . . . . . . . . . 4 . . 2 . . 6 3 1 . . . . . . . 1 18 7 Impact 12 | . . . . . . . . . . . . 2 . . 6 3 1 . . . . . . . . . . Kinetic 29 | . . . . . . . . . 3 . . . . . . . . . . . . . . . 1 18 7 Secondary 1 | . . . . . . . . . 1 . . . . . . . . . . . . . . . . . . Self-Inflicted Damage 161 | . . . . . . . . . 10 . . . . . . . . . 46 105 . . . . . . . Shots 5 | . . . . . . . . . 1 . . . . . . . . . 1 3 . . . . . . . Rammed . | . . . . . . . . . . . . . . . . . . . . . . . . . . . . Targets Rammed 1 | . . . . . . . . . . . . . . . . . . . . . 1 . . . . . . Kicked 1 | . . . . . . . . . . . . . . . . . . . . . 1 . . . . . . Crushed . | . . . . . . . . . . . . . . . . . . . . . . . . . . . . Highest Temperature 456 | 140 331 243 308 348 189 280 223 36 303 152 . 184 100 . 246 216 196 270 209 348 191 163 248 424 456 312 436 Average Temperature 79 | 51 103 92 96 95 58 56 41 16 70 66 . 51 51 . 86 86 80 80 77 100 53 34 48 107 147 70 102 Received Heat Transfer 5580 | . 378 408 387 645 18 135 630 . 390 423 42 551 . . 822 . 81 43 123 36 65 99 . 154 70 24 56 Effects 17 | . 1 . . . . 2 . . . . . . . . . . . . . . . . 1 2 4 2 5 Shutdowns 6 | . . . . . . . . . . . . . . . . . . . . . . . . 2 1 . 3 Energy Bleed 2 | . 1 . . . . . . . . . . . . . . . . . . . . . . . 1 . . Interference 7 | . . . . . . 2 . . . . . . . . . . . . . . . . 1 . 2 2 . Short Circuit 1 | . . . . . . . . . . . . . . . . . . . . . . . . . . . 1 Damage (minor) 1 | . . . . . . . . . . . . . . . . . . . . . . . . . . . 1 Siege Activations 2 | . . . . . . . . . . . . . . . . . . . . . . . . . . . 2 Total Turns 55 | . . . . . . . . . . . . . . . . . . . . . . . . . . . 55 Longest Duration 29 | . . . . . . . . . . . . . . . . . . . . . . . . . . . 29 Martial Activations . | . . . . . . . . . . . . . . . . . . . . . . . . . . . . Shielding Activations 1 | . . . . . . . . . . . . . . . . . . . . . . . . . . 1 . Total Turns 2 | . . . . . . . . . . . . . . . . . . . . . . . . . . 2 . Longest Duration 2 | . . . . . . . . . . . . . . . . . . . . . . . . . . 2 . Robots Disrupted . | . . . . . . . . . . . . . . . . . . . . . . . . . . . . Combat Hostiles . | . . . . . . . . . . . . . . . . . . . . . . . . . . . . Robots Corrupted 9 | . . . . . . . . . . . . 1 . . 5 2 1 . . . . . . . . . . Combat Hostiles 6 | . . . . . . . . . . . . 1 . . 4 1 . . . . . . . . . . . Parts Fried 15 | . . . . . . . . . 2 . . 1 . 2 4 3 . 1 . . . . . 2 . . . Impact Corruptions 28 | . . . . . . . . . . . . 2 . 1 9 4 12 . . . . . . . . . . Robots Melted 12 | . . 1 . 2 1 1 4 . . . . . . . . . . . . 2 . 1 . . . . . Combat Hostiles 7 | . . 1 . 1 1 1 2 . . . . . . . . . . . . . . 1 . . . . . Parts Melted 74 | 2 3 3 1 5 . 4 25 . 2 4 . . . . . . . . 1 2 1 4 11 2 . 2 2 Heat Transferred 38200 | 740 1517 2812 1628 4440 1221 2664 6675 37 2955 1147 . . . . . . . 250 150 1549 1766 1332 2442 1628 361 2220 666 Parts Sabotaged 1 | . . . . . . . . . . . . . . . . . . . . 1 . . . . . . . Parts Stolen . | . . . . . . . . . . . . . . . . . . . . . . . . . . . . Parts Stripped . | . . . . . . . . . . . . . . . . . . . . . . . . . . . . Power Chain Reactions 3 | . . . . . . . . . 3 . . . . . . . . . . . . . . . . . . Alert | -11 -10 -9 -8 -8 -8 -8 -8 -7 -7 -6 -6 -6 -6 -5 -5 -5 -5 -5 -4 -4 -4 -4 -4 -3 -2 -1 -1 ------- Run | Yrd Mat Mat Mat Gar Mat Sto Gar Fac Gar Fac Low Low Zio Pro Fac Upp Upp War Pro Fac Ext Cet Arc Res Res Acc Com Maximum Alert Level 4 | . . . . 3 2 1 4 2 4 3 . . . . 2 . . . . 3 2 2 1 2 1 3 2 Low Security (%) 38 | 100 100 100 100 22 . 85 12 . . . . . . . 73 . . . . 15 . . 53 67 74 34 . Level 1 16 | . . . . 23 . 14 13 . 14 . . . . . 17 . . . . 40 67 62 46 7 25 10 . Level 2 30 | . . . . 30 100 . 17 100 14 91 . . . . 9 . . . . 38 32 36 . 24 . 17 100 Level 3 11 | . . . . 23 . . 49 . 46 8 . . . . . . . . . 5 . . . . . 37 . Level 4 2 | . . . . . . . 7 . 24 . . . . . . . . . . . . . . . . . . Level 5 . | . . . . . . . . . . . . . . . . . . . . . . . . . . . . High Security . | . . . . . . . . . . . . . . . . . . . . . . . . . . . . Max Security . | . . . . . . . . . . . . . . . . . . . . . . . . . . . . Peak Influence 1339 | 10 47 186 61 1015 645 243 1200 630 1339 761 . . . . 465 . . . . 713 472 447 254 657 372 907 592 Initial 702 | . . . 50 14 494 243 132 630 305 702 . . . . 63 . . . . 75 336 220 166 43 369 . 579 Average 371 | 1 10 95 29 503 557 152 683 518 873 604 . . . . 156 . . . . 397 373 348 188 180 107 459 523 Influence Increases 13494 | 30 197 695 208 1031 342 488 1158 37 1104 658 105 130 . 248 1215 10 135 465 305 1026 550 407 205 942 75 1395 333 Destroy 0b10 Robot/C 6900 | . 140 460 120 480 200 260 560 . 540 380 80 40 . 140 700 . . 440 260 340 260 160 80 520 20 500 220 Destroy 0b10 Robot/NC 550 | 30 5 50 35 15 20 20 15 . 15 55 . . . 5 30 10 . 10 . 35 25 10 45 50 5 60 5 Destroy Leader 1076 | . 42 110 30 30 62 66 40 . 40 86 10 . . 20 146 . . . 30 68 16 . . 106 2 150 22 Allied During Kill 489 | . . . . 6 40 . 27 . 10 1 . . . 83 13 . . . . . 160 136 13 . . . . Successful Hack 286 | . 10 29 6 . 5 17 21 14 14 2 . . . . 40 . . . . 38 7 . . 16 . 67 . Select Force Hacks 30 | . . . . . . 30 . . . . . . . . . . . . . . . . . . . . . Disable Machine 825 | . . . 15 30 15 90 30 15 45 45 . . . . 30 . . . . 195 60 15 45 90 . 75 30 Anti-Garrison Action 1150 | . . . . 400 . . 350 . 250 . . . . . . . . . . . . . . . . 150 . Destroy Structure 1528 | . . 1 2 55 . 5 85 8 85 14 . . . . 136 . . . . 350 22 86 22 160 48 393 56 Partial Spotted 15 | . . . . . . . . . . . . . . . 15 . . . . . . . . . . . . Lose Combat Pursuer 645 | . . 45 . 15 . . 30 . 105 75 15 90 . . 105 . 135 15 15 . . . . . . . . Influence Decreases 13064 | 30 197 574 306 39 779 862 162 800 202 1239 411 485 97 146 877 333 143 125 634 459 843 384 505 402 732 490 808 Entered New Map 5104 | . . . 71 9 521 335 72 570 132 637 281 87 97 . 39 163 23 109 449 45 351 174 251 74 288 . 326 Time Decay 6139 | 30 181 372 225 . 238 274 . 230 . 482 130 368 . 126 528 170 120 16 185 254 452 110 214 278 434 420 302 Lost Part 756 | . 16 90 . 30 . . 30 . 50 100 . 30 . . 110 . . . . 10 . . . 50 10 60 170 Lost Ally 420 | . . . 10 . 20 20 60 . 20 20 . . . 20 50 . . . . . 40 100 40 . . 10 10 Purge Threat 645 | . . 112 . . . 233 . . . . . . . . 150 . . . . 150 . . . . . . . Squads Dispatched 60 | . 1 2 1 . 2 3 . 2 . 4 . . . . 8 . 1 . . 8 . . . 7 3 13 5 Investigation 11 | . . . . . . 1 . . . 2 . . . . 5 . . . . 1 . . . . . 2 . Extermination 14 | . . . . . . . . 1 . 2 . . . . 2 . . . . 2 . . . 2 . 4 1 Reinforcement 23 | . 1 2 1 . 1 1 . 1 . . . . . . 1 . . . . 3 . . . 3 3 3 3 Assault 9 | . . . . . 1 . . . . . . . . . . . 1 . . 2 . . . 1 . 3 1 Garrison 3 | . . . . . . 1 . . . . . . . . . . . . . . . . . 1 . 1 . Intercept . | . . . . . . . . . . . . . . . . . . . . . . . . . . . . Searches Triggered . | . . . . . . . . . . . . . . . . . . . . . . . . . . . . Construction Impeded 2 | . . . . . . . . . . . . . . . . . . . . 1 . . . 1 . . . Haulers Reinforced 5 | . . . . . . . . . . . . . . . . . . . . 1 . . . 1 3 . . Active Scanning Responses . | . . . . . . . . . . . . . . . . . . . . . . . . . . . . Cargo Convoy Interrupts . | . . . . . . . . . . . . . . . . . . . . . . . . . . . . Stealth | -11 -10 -9 -8 -8 -8 -8 -8 -7 -7 -6 -6 -6 -6 -5 -5 -5 -5 -5 -4 -4 -4 -4 -4 -3 -2 -1 -1 --------- Run | Yrd Mat Mat Mat Gar Mat Sto Gar Fac Gar Fac Low Low Zio Pro Fac Upp Upp War Pro Fac Ext Cet Arc Res Res Acc Com Distress Signals 56 | . . 1 1 1 1 3 . . . 3 . . . . 1 . . 1 . 1 . 2 . 2 7 10 22 Communications Jammed . | . . . . . . . . . . . . . . . . . . . . . . . . . . . . Distress Signals . | . . . . . . . . . . . . . . . . . . . . . . . . . . . . Times Spotted 537 | . 12 38 10 28 11 20 28 2 32 33 6 12 . 8 52 . 14 28 14 27 23 10 13 37 11 41 27 Peak Tracking Total 13 | . 4 4 3 7 4 4 6 1 4 4 4 5 . 4 11 . 9 13 5 9 8 5 2 9 4 9 5 Tactical Retreats 31 | . . 2 . 1 . . 2 . 3 3 1 4 . . 3 . 3 1 1 . . . . . . 5 2 ECM-based Alert Blocks 11 | . . . . . . . . . . . . . . . . . . . . . . . . . . 10 1 Traps | -11 -10 -9 -8 -8 -8 -8 -8 -7 -7 -6 -6 -6 -6 -5 -5 -5 -5 -5 -4 -4 -4 -4 -4 -3 -2 -1 -1 ------- Run | Yrd Mat Mat Mat Gar Mat Sto Gar Fac Gar Fac Low Low Zio Pro Fac Upp Upp War Pro Fac Ext Cet Arc Res Res Acc Com Traps Triggered 18 | . . . . 2 . 2 4 1 3 1 . . . . 2 . . 1 . 1 1 . . . . . . Indirectly . | . . . . . . . . . . . . . . . . . . . . . . . . . . . . Trap Hack Attempts . | . . . . . . . . . . . . . . . . . . . . . . . . . . . . Triggered . | . . . . . . . . . . . . . . . . . . . . . . . . . . . . Disarmed . | . . . . . . . . . . . . . . . . . . . . . . . . . . . . Reprogrammed . | . . . . . . . . . . . . . . . . . . . . . . . . . . . . Reused 2 | . . . . . . . . . . . . . . . . . 2 . . . . . . . . . . Traps Extracted . | . . . . . . . . . . . . . . . . . . . . . . . . . . . . Installed 2 | . . . . . . . . . . . . . . . . . 2 . . . . . . . . . . Triggered 2 | . . . . . . . . . . . . . . . . . 2 . . . . . . . . . . Most Traps Carried 5 | . . . . . . . . . . . . . . . . 5 4 2 . . . . . . . . . Machines | -11 -10 -9 -8 -8 -8 -8 -8 -7 -7 -6 -6 -6 -6 -5 -5 -5 -5 -5 -4 -4 -4 -4 -4 -3 -2 -1 -1 ---------- Run | Yrd Mat Mat Mat Gar Mat Sto Gar Fac Gar Fac Low Low Zio Pro Fac Upp Upp War Pro Fac Ext Cet Arc Res Res Acc Com Machines Disabled 76 | . . . 1 8 1 6 7 1 7 3 . . . . 2 . . 1 . 13 8 1 3 6 . 6 2 Max in Single Turn 5 | . . . 1 2 1 1 1 1 2 1 . . . . 1 . . 1 . 5 1 . 1 1 . 1 1 Garrison Access 3 | . . . . . . . . . . . . . . . 1 . . . . . . . . . 1 1 . Garrison Relay 11 | . . . . 4 . . 5 . 2 . . . . . . . . . . . . . . . . . . Phase Generator 2 | . . . . 1 . . . . 1 . . . . . . . . . . . . . . . . . . Machines Repaired . | . . . . . . . . . . . . . . . . . . . . . . . . . . . . Machines Dismantled 9 | . . . . 1 . 1 . . 1 . . . . . . . . 1 . . 3 . . . . 1 1 Machines Sabotaged . | . . . . . . . . . . . . . . . . . . . . . . . . . . . . Overloaded Fab Kills . | . . . . . . . . . . . . . . . . . . . . . . . . . . . . Hacking | -11 -10 -9 -8 -8 -8 -8 -8 -7 -7 -6 -6 -6 -6 -5 -5 -5 -5 -5 -4 -4 -4 -4 -4 -3 -2 -1 -1 --------- Run | Yrd Mat Mat Mat Gar Mat Sto Gar Fac Gar Fac Low Low Zio Pro Fac Upp Upp War Pro Fac Ext Cet Arc Res Res Acc Com Machines Accessed 77 | . 5 3 3 1 1 8 2 4 2 8 . . . . 9 . . 2 1 5 8 1 . 3 1 8 2 Terminals 48 | . 3 2 1 1 1 6 2 1 2 6 . . . . 3 . . . 1 2 8 1 . . . 6 2 Fabricators 3 | . . . . . . . . 1 . 1 . . . . . . . . . . . . . 1 . . . Repair Stations 6 | . 1 1 . . . . . 1 . . . . . . 1 . . . . 2 . . . . . . . Recycling Units 4 | . 1 . . . . 1 . . . . . . . . 2 . . . . . . . . . . . . Scanalyzers 7 | . . . 1 . . . . . . 1 . . . . 1 . . . . 1 . . . 2 . 1 . Garrison Access 7 | . . . 1 . . 1 . 1 . . . . . . 2 . . . . . . . . . 1 1 . Total Hacks 180 | . 13 15 6 3 2 18 3 5 3 16 . . . . 20 . . 6 1 20 19 3 . 6 2 16 3 Successful 85 | . 6 13 3 . 1 9 2 2 1 2 . . . . 8 . . 6 1 17 5 . . 3 1 5 . Failed 95 | . 7 2 3 3 1 9 1 3 2 14 . . . . 12 . . . . 3 14 3 . 3 1 11 3 Catastrophic 22 | . 1 . . . . 1 . . 1 6 . . . . 1 . . . . 2 4 . . 1 . 5 . Database Lockouts . | . . . . . . . . . . . . . . . . . . . . . . . . . . . . Manual 47 | . 9 5 3 . 2 8 . 2 . 5 . . . . 5 . . . . 3 . . . . . 4 1 Terminals 108 | . 9 6 3 3 2 16 3 2 3 9 . . . . 8 . . . 1 6 19 3 . . . 12 3 Fabricators 4 | . . . . . . . . 1 . 2 . . . . . . . . . . . . . 1 . . . Repair Stations 16 | . 2 9 . . . . . 1 . . . . . . 1 . . . . 3 . . . . . . . Recycling Units 8 | . 2 . . . . 1 . . . . . . . . 5 . . . . . . . . . . . . Scanalyzers 28 | . . . 2 . . . . . . 5 . . . . 3 . . . . 11 . . . 5 . 2 . Garrison Access 10 | . . . 1 . . 1 . 1 . . . . . . 3 . . . . . . . . . 2 2 . Terminal Hacks 36 | . . 4 1 . . 5 2 . 1 . . . . . 3 . . 6 1 4 5 . . . . 4 . Record 1 | . . . . . . . . . . . . . . . . . . . 1 . . . . . . . . Prototype ID Bank 5 | . . . . . . . . . . . . . . . . . . 5 . . . . . . . . . Open Door 9 | . . . . . . 1 1 . . . . . . . . . . 1 . . 4 . . . . 2 . Branch Access Points 5 | . . 1 1 . . . . . . . . . . . 1 . . . . 1 . . . . . 1 . Emergency Access Points 1 | . . . . . . . . . 1 . . . . . . . . . . . . . . . . . . Terminal Index 1 | . . . . . . . . . . . . . . . . . . . . . . . . . . 1 . Repair Station Index 1 | . . 1 . . . . . . . . . . . . . . . . . . . . . . . . . Scanalyzer Index 1 | . . 1 . . . . . . . . . . . . . . . . . . . . . . . . . Unreport Threat 5 | . . 1 . . . 2 . . . . . . . . 1 . . . . 1 . . . . . . . Locate Traps 1 | . . . . . . . . . . . . . . . . . . . . 1 . . . . . . . Hauler Manifests 1 | . . . . . . . . . . . . . . . . . . . . 1 . . . . . . . Registered Components 1 | . . . . . . . . . . . . . . . 1 . . . . . . . . . . . . Zone Layout 3 | . . . . . . 2 . . . . . . . . . . . . . . 1 . . . . . . Garrison Registry 1 | . . . . . . . 1 . . . . . . . . . . . . . . . . . . . . Fabricator Hacks 1 | . . . . . . . . 1 . . . . . . . . . . . . . . . . . . . Network Status 1 | . . . . . . . . 1 . . . . . . . . . . . . . . . . . . . Repair Station Hacks 12 | . 2 8 . . . . . . . . . . . . 1 . . . . 1 . . . . . . . Scan Component 7 | . 1 4 . . . . . . . . . . . . 1 . . . . 1 . . . . . . . Repair 5 | . 1 4 . . . . . . . . . . . . . . . . . . . . . . . . . Recycling Unit Hacks 2 | . 1 . . . . . . . . . . . . . 1 . . . . . . . . . . . . Report Inventory 2 | . 1 . . . . . . . . . . . . . 1 . . . . . . . . . . . . Scanalyzer 19 | . . . . . . . . . . 2 . . . . 2 . . . . 11 . . . 3 . 1 . Insert Component 6 | . . . . . . . . . . 1 . . . . 1 . . . . 3 . . . 1 . . . Analyze 4 | . . . . . . . . . . 1 . . . . 1 . . . . 2 . . . . . . . Retrieve Study 9 | . . . . . . . . . . . . . . . . . . . . 6 . . . 2 . 1 . Garrison Access Hacks 5 | . . . 1 . . 1 . 1 . . . . . . 1 . . . . . . . . . 1 . . Unlock Access 3 | . . . 1 . . 1 . 1 . . . . . . . . . . . . . . . . . . . Seal Access 2 | . . . . . . . . . . . . . . . 1 . . . . . . . . . 1 . . Unauthorized Hacks 10 | . 3 1 1 . 1 3 . . . . . . . . . . . . . 1 . . . . . . . Terminals 8 | . 3 1 1 . 1 2 . . . . . . . . . . . . . . . . . . . . . Assimilate 1 | . 1 . . . . . . . . . . . . . . . . . . . . . . . . . . Botnet 4 | . . . 1 . 1 2 . . . . . . . . . . . . . . . . . . . . . Operators 2 | . 1 1 . . . . . . . . . . . . . . . . . . . . . . . . . Skim 1 | . 1 . . . . . . . . . . . . . . . . . . . . . . . . . . Fabricators . | . . . . . . . . . . . . . . . . . . . . . . . . . . . . Repair Stations 1 | . . . . . . . . . . . . . . . . . . . . 1 . . . . . . . Patch 1 | . . . . . . . . . . . . . . . . . . . . 1 . . . . . . . Recycling Units 1 | . . . . . . 1 . . . . . . . . . . . . . . . . . . . . . Tunnel 1 | . . . . . . 1 . . . . . . . . . . . . . . . . . . . . . Scanalyzers . | . . . . . . . . . . . . . . . . . . . . . . . . . . . . Garrison Access . | . . . . . . . . . . . . . . . . . . . . . . . . . . . . Data Cores Recovered 1 | . . . 1 . . . . . . . . . . . . . . . . . . . . . . . . Used . | . . . . . . . . . . . . . . . . . . . . . . . . . . . . Hacking Detections 57 | . 5 3 2 1 1 5 1 2 1 8 . . . . 6 . . . 1 3 4 1 . 3 1 7 2 Full Trace Events 9 | . . . . 1 . 1 . . . 2 . . . . 3 . . . . . . . . . . 2 . Feedback Events . | . . . . . . . . . . . . . . . . . . . . . . . . . . . . Feedback Blocked . | . . . . . . . . . . . . . . . . . . . . . . . . . . . . Robot Schematics Acquired 3 | . . . . . . . . . . . . . 3 . . . . . . . . . . . . . . Robots Built . | . . . . . . . . . . . . . . . . . . . . . . . . . . . . Authchips . | . . . . . . . . . . . . . . . . . . . . . . . . . . . . Time . | . . . . . . . . . . . . . . . . . . . . . . . . . . . . Total Robot Build Rating . | . . . . . . . . . . . . . . . . . . . . . . . . . . . . Part Schematics Acquired 18 | . . . . . . . . . . 1 . . 14 . 1 . . . . 2 . . . . . . . Parts Built . | . . . . . . . . . . . . . . . . . . . . . . . . . . . . Authchips . | . . . . . . . . . . . . . . . . . . . . . . . . . . . . Time . | . . . . . . . . . . . . . . . . . . . . . . . . . . . . Total Part Build Rating . | . . . . . . . . . . . . . . . . . . . . . . . . . . . . Part Studies Acquired 9 | . . . . . . . . . . . . . . . . . . . . 6 . . . 2 . 1 . Parts Repaired 5 | . 1 4 . . . . . . . . . . . . . . . . . . . . . . . . . Time 211 | . 26 185 . . . . . . . . . . . . . . . . . . . . . . . . . Parts Recycled . | . . . . . . . . . . . . . . . . . . . . . . . . . . . . Recycled Matter . | . . . . . . . . . . . . . . . . . . . . . . . . . . . . Retrieved Matter . | . . . . . . . . . . . . . . . . . . . . . . . . . . . . Retrieved Components . | . . . . . . . . . . . . . . . . . . . . . . . . . . . . Parts Scanalyzed 5 | . . . . . . . . . . 1 . . . . 1 . . . . 2 . . . 1 . . . Part Schematics Acquired 4 | . . . . . . . . . . 1 . . . . 1 . . . . 2 . . . . . . . Parts Damaged 3 | . . . . . . . . . . 1 . . . . . . . . . 1 . . . 1 . . . Bothacking | -11 -10 -9 -8 -8 -8 -8 -8 -7 -7 -6 -6 -6 -6 -5 -5 -5 -5 -5 -4 -4 -4 -4 -4 -3 -2 -1 -1 ------------ Run | Yrd Mat Mat Mat Gar Mat Sto Gar Fac Gar Fac Low Low Zio Pro Fac Upp Upp War Pro Fac Ext Cet Arc Res Res Acc Com Used RIF Installer . | . . . . . . . . . . . . . . . . . . . . . . . . . . . . Robots Hacked . | . . . . . . . . . . . . . . . . . . . . . . . . . . . . Non-combat . | . . . . . . . . . . . . . . . . . . . . . . . . . . . . Combat . | . . . . . . . . . . . . . . . . . . . . . . . . . . . . Robot Hacks Applied . | . . . . . . . . . . . . . . . . . . . . . . . . . . . . Relay Couplers Released 50 | . . . . 16 . . 20 . 9 . . . . . . . . . . . . . . . 2 3 . Machine Destruction 50 | . . . . 16 . . 20 . 9 . . . . . . . . . . . . . . . 2 3 . Fabnet Peak Effective % . | . . . . . . . . . . . . . . . . . . . . . . . . . . . . Robots Rewired 6 | . . . . 2 . . 1 . . . . . . . . . . . . . 3 . . . . . . Allies Hacked 3 | . . . . . . . 2 . 1 . . . . . . . . . . . . . . . . . . Hacks Repelled . | . . . . . . . . . . . . . . . . . . . . . . . . . . . . Allies | -11 -10 -9 -8 -8 -8 -8 -8 -7 -7 -6 -6 -6 -6 -5 -5 -5 -5 -5 -4 -4 -4 -4 -4 -3 -2 -1 -1 -------- Run | Yrd Mat Mat Mat Gar Mat Sto Gar Fac Gar Fac Low Low Zio Pro Fac Upp Upp War Pro Fac Ext Cet Arc Res Res Acc Com Total Allies 28 | . 1 . . 2 . . 3 . 3 . . . 7 . . . . . . . 12 . . . . . . Largest Group 12 | . 1 1 1 2 2 1 3 . 2 1 . . 7 7 5 . . . . . 12 10 3 . . . . Highest-Rated Group 651 | . 10 10 10 45 45 21 74 . 142 39 . . 167 167 122 . . . . . 651 446 141 . . . . Highest-Rated Ally 159 | . 10 10 10 25 25 21 31 . 80 39 . . 31 31 31 . . . . . 159 51 51 . . . . Initial Warlord ECA Mod 23 | . . . . . 9 9 9 19 19 23 23 23 23 22 22 22 22 22 21 21 21 21 21 20 19 18 18 Total Orders 22 | . . 2 . . . . . . . . . . . . 4 . . . . . . . . . . 7 9 STAY 1 | . . 1 . . . . . . . . . . . . . . . . . . . . . . . . . FOLLOW 1 | . . 1 . . . . . . . . . . . . . . . . . . . . . . . . . EXPLORE 10 | . . . . . . . . . . . . . . . . . . . . . . . . . . 5 5 RETURN 10 | . . . . . . . . . . . . . . . 4 . . . . . . . . . . 2 4 Ally Attacks 261 | . . . . 6 16 . 10 . 7 9 . . . 25 8 . . . . . 122 46 12 . . . . Total Damage 5801 | . . . . 245 349 . 204 . 95 71 . . . 257 146 . . . . . 2909 1232 293 . . . . Kills 29 | . . . . 1 6 . 2 . . . . . . 3 . . . . . . 11 5 1 . . . . Allies Corrupted . | . . . . . . . . . . . . . . . . . . . . . . . . . . . . Allies Melted 2 | . . . . . . . . . . . . . . . 2 . . . . . . . . . . . . Intel | -11 -10 -9 -8 -8 -8 -8 -8 -7 -7 -6 -6 -6 -6 -5 -5 -5 -5 -5 -4 -4 -4 -4 -4 -3 -2 -1 -1 ------- Run | Yrd Mat Mat Mat Gar Mat Sto Gar Fac Gar Fac Low Low Zio Pro Fac Upp Upp War Pro Fac Ext Cet Arc Res Res Acc Com Active Infowar (turns) 5000 | 56 77 249 . . . . . . . 821 . . . . 479 . . . . 548 257 . . 598 29 1019 867 Optics 943 | . . 249 . . . . . . . . . . . . . . . . . . . . . . . . 694 Sensors 3466 | . . . . . . . . . . 815 . . . . 479 . . . . 548 257 . . 598 27 742 . Terrain 289 | . . . . . . . . . . 289 . . . . . . . . . . . . . . . . . Seismic 1329 | 56 77 . . . . . . . . . . . . . . . . . . . . . . . . 574 622 ECM 905 | . . . . . . . . . . . . . . . . . . . . . . . . . 2 719 184 Robot Analysis Total . | . . . . . . . . . . . . . . . . . . . . . . . . . . . . Derelict Logs Recovered 10 | . . . . . . . . . . . 2 1 3 1 . 1 . . 2 . . . . . . . . Drone Launches 13 | . . . . . . . . . . . . . . . 4 . . . . . . . . . . 6 3 Drone Recoveries 10 | . . . . . . . . . . . . . . . 4 . . . . . . . . . . 4 2 Exploration | -11 -10 -9 -8 -8 -8 -8 -8 -7 -7 -6 -6 -6 -6 -5 -5 -5 -5 -5 -4 -4 -4 -4 -4 -3 -2 -1 -1 ------------- Run | Yrd Mat Mat Mat Gar Mat Sto Gar Fac Gar Fac Low Low Zio Pro Fac Upp Upp War Pro Fac Ext Cet Arc Res Res Acc Com Turns Passed 24136 | 155 718 1227 493 1567 507 645 1241 494 1327 1249 274 847 1353 371 1521 344 244 1219 650 548 1126 237 449 790 1629 1367 1544 Spaces Moved 13633 | 67 370 414 186 588 185 198 628 342 676 715 218 557 1154 252 924 258 171 878 559 336 605 150 228 501 1211 821 441 Core 8 | 8 . . . . . . . . . . . . . . . . . . . . . . . . . . . Treads 2073 | . 207 414 186 588 185 198 32 . . . . . . . . . . . . . . . . . . . 263 Legs 9563 | 59 163 . . . . . . . . 340 218 557 1154 252 924 258 171 878 559 336 605 150 228 501 1211 821 178 Wheels 1989 | . . . . . . . 596 342 676 375 . . . . . . . . . . . . . . . . . Hover . | . . . . . . . . . . . . . . . . . . . . . . . . . . . . Flight . | . . . . . . . . . . . . . . . . . . . . . . . . . . . . Fastest Speed 50 | 50 120 160 160 160 240 240 130 130 130 97 108 108 114 114 106 126 126 104 104 107 107 107 107 107 103 106 106 Average Speed 130 | 114 142 160 162 197 240 240 135 130 133 126 108 113 114 114 115 126 126 121 105 118 136 107 111 107 120 113 162 Slowest Speed 360 | 120 160 160 240 240 240 240 240 130 145 190 108 187 114 188 188 126 126 196 174 195 191 107 187 107 187 114 360 Overloaded Moves . | . . . . . . . . . . . . . . . . . . . . . . . . . . . . Propulsion Burnouts . | . . . . . . . . . . . . . . . . . . . . . . . . . . . . Robots Hopped . | . . . . . . . . . . . . . . . . . . . . . . . . . . . . Potential Cave-ins 12 | . . . . . . . . . . . . . . . 7 . . . . . . . . . . . 5 Cave-ins Triggered 16 | . . . . . . . . . . . . . . . 2 . . . . . . . . . . . 14 Exploration Rate (%) 46 | 4 56 41 22 67 19 47 79 9 70 25 45 71 82 44 29 43 31 90 72 13 65 65 95 18 43 24 30 Regions Visited 27 Branch Regions 13 Pre-discovered Areas 4 | . . . . . . 1 . . . . 1 . 2 . . . . . . . . . . . . . . Known Exits Taken 15 | . . . 1 . 1 1 . 1 . 1 1 1 . . 1 1 1 . 1 1 . . . 1 1 1 . Unknown Exits Taken 9 | 1 1 1 . . . . . . . . . . 1 1 . . . 1 . . 1 1 1 . . . . Scrap Searched 9 | . . . . . . . . . . . . 1 3 . . 2 . . 3 . . . . . . . . Spaces Dug 92 | . . . . . . . . 8 2 4 . . . . 21 . 2 . 19 3 . . . 2 6 15 10 Terrain Destroyed 1157 | . . . . 74 . 3 . 8 69 5 . . . 20 79 . 2 124 84 187 5 131 14 127 24 150 51 Melee 35 | . . . . . . . . 8 . 4 . . . . 21 . 2 . . . . . . . . . . Projectile 241 | . . . . . . 3 . . 9 1 . . . . 1 . . 6 17 22 5 3 14 12 24 105 19 AOE 881 | . . . . 74 . . . . 60 . . . . 20 57 . . 118 67 165 . 128 . 115 . 45 32 Terrain Rammed . | . . . . . . . . . . . . . . . . . . . . . . . . . . . . Walls Destroyed . | . . . . . . . . . . . . . . . . . . . . . . . . . . . . Machines Disabled . | . . . . . . . . . . . . . . . . . . . . . . . . . . . . Actions | -11 -10 -9 -8 -8 -8 -8 -8 -7 -7 -6 -6 -6 -6 -5 -5 -5 -5 -5 -4 -4 -4 -4 -4 -3 -2 -1 -1 --------- Run | Yrd Mat Mat Mat Gar Mat Sto Gar Fac Gar Fac Low Low Zio Pro Fac Upp Upp War Pro Fac Ext Cet Arc Res Res Acc Com Total 17682 | 102 479 779 293 810 217 280 841 370 891 930 242 733 1193 324 1185 272 196 1004 594 419 824 191 354 638 1357 1048 1116 Wait 1600 | . 47 198 23 26 4 26 66 . 49 61 14 137 7 57 49 . 19 24 13 10 74 19 64 27 8 54 524 Move 13605 | 66 369 413 186 587 184 198 627 342 674 714 217 556 1153 251 922 257 170 877 558 335 604 149 227 500 1210 820 439 Hop . | . . . . . . . . . . . . . . . . . . . . . . . . . . . . Pick Up 244 | 7 10 17 15 22 1 2 6 3 13 16 1 4 6 2 16 6 . 19 4 8 3 2 8 12 19 15 7 Fast Attach 198 | 7 2 18 7 4 4 1 7 . 11 18 . 5 8 . 15 1 . 14 . 5 2 2 4 9 39 4 11 Attach 130 | . 2 12 2 12 . 2 4 3 7 6 1 2 1 . 13 . . 9 1 5 1 . 6 10 6 11 14 Detach 20 | . . 4 . 1 . . . . . . . . . . 1 . . 5 . . . . . 2 2 1 4 Swap 201 | . 2 2 3 11 2 5 9 1 8 23 1 2 3 8 30 1 . 5 3 5 15 . 2 11 11 27 11 Drop 344 | . 1 15 18 25 7 4 14 1 18 24 . 5 15 2 31 3 2 25 2 12 7 4 13 14 50 12 20 Fire 838 | 22 46 100 39 73 15 32 79 4 67 15 . . . 1 7 . . 17 13 34 23 15 30 53 12 88 53 Melee 226 | . . . . 2 . . 4 8 19 53 8 22 . 3 100 4 3 . . . . . . . . . . Ram . | . . . . . . . . . . . . . . . . . . . . . . . . . . . . Kick 1 | . . . . . . . . . . . . . . . . . . . . . 1 . . . . . . Crush . | . . . . . . . . . . . . . . . . . . . . . . . . . . . . Escape Stasis 61 | . . . . 4 . 2 24 8 16 . . . . . 1 . . . . 5 . . . . . . 1 Rewire 100 | . . . . 30 . . 1 . 1 . . . . . . . . . . . 68 . . . . . . Trap 2 | . . . . . . . . . . . . . . . . . 2 . . . . . . . . . . Miscellaneous 112 | . . . . 13 . 8 . . 8 . . . . . . . . 9 . . 26 . . . . 16 32 Route ------- -11/Scrapyard -10/Materials (discovered 2 exits: *Mat / [*Min]) -9/Materials (discovered 4 exits: *Mat x2 / *Min x2) -8/Materials (discovered 3 exits: *Sto x2 / Gar) -8/Garrison (discovered 3 exits: *Mat x3) -8/Materials -8/Storage -8/Garrison (discovered 3 exits: *Fac x3) -7/Factory (discovered 2 exits: *Fac / Gar) -7/Garrison (discovered 2 exits: *Fac x2) -6/Factory -6/Lower Caves -6/Lower Caves -6/Zion -5/Proximity Caves -5/Factory (discovered 5 exits: *Fac x3 / *Upp x2) -5/Upper Caves -5/Upper Caves -5/Warlord -4/Proximity Caves -4/Factory (discovered 5 exits: Upp x2 / *Ext x2 / Arm) -4/Extension (discovered 2 exits: *Res / *Cet) -4/Cetus (discovered 2 exits: *Res / [*Arc]) -4/Archives (discovered 3 exits: *Res / [*Hub x2]) -3/Research (discovered 2 exits: *Res x2) -2/Research (discovered 3 exits: *Acc x2 / *Tes) -1/Access -1/Command (discovered 2 exits: [*Sur x2]) 0b11 Command History --------- Turn | Location | Event 8 | -11/Scrapyard | Discovered new exit (range 15) 156 | -11/Scrapyard | Entered Materials 277 | -10/Materials | Discovered new exit (range 13) 309 | -10/Materials | Build established: Mutant 775 | -10/Materials | Repaired Med. Laser 800 | -10/Materials | Discovered new exit (range 15) 856 | -10/Materials | Derelicts attacked the area 874 | -10/Materials | Entered another Materials area 874 | -9/Materials | Accompanied by 1 ally 874 | -9/Materials | Evolved 2 slots: Propulsion x1, Utility x1 1106 | -9/Materials | Lost 3 parts (1n1u1w) 1344 | -9/Materials | Discovered new exit (range 4) 1359 | -9/Materials | Identified exit to Mines 1766 | -9/Materials | Core integrity fell below 50% 1808 | -9/Materials | Discovered new exit (range 15) 1822 | -9/Materials | Lost 3 parts (2n1u) 1847 | -9/Materials | Destroyed 7 combat bots 1921 | -9/Materials | Repaired Imp. Treads 1973 | -9/Materials | Repaired Cld. Ion Engine 2026 | -9/Materials | Repaired Adv. Beam Cannon 2078 | -9/Materials | Repaired Imp. Medium Laser 2101 | -9/Materials | Entered another Materials area 2101 | -8/Materials | Accompanied by 1 ally 2101 | -8/Materials | Evolved 2 slots: Utility x1, Weapon x1 2146 | -8/Materials | Identified exit to Storage 2594 | -8/Materials | Identified exit to Garrison 2594 | -8/Materials | Entered Garrison 2640 | -8/Garrison | Build established: Tank 2710 | -8/Garrison | Triggered checkpoint 2746 | -8/Garrison | Garrison Relay disabled 2854 | -8/Garrison | Triggered checkpoint 2896 | -8/Garrison | Triggered checkpoint 3012 | -8/Garrison | Garrison Relay disabled 3026 | -8/Garrison | Triggered checkpoint 3051 | -8/Garrison | Discovered new exit (range 6) 3268 | -8/Garrison | Discovered new exit (range 10) 3314 | -8/Garrison | Phase Generator disabled 3384 | -8/Garrison | Build established: Scavenger-Tank 3432 | -8/Garrison | Triggered checkpoint 3498 | -8/Garrison | Spotted B-75 Beast 3589 | -8/Garrison | Discovered new exit (range 10) 3641 | -8/Garrison | Garrison Relay disabled 3742 | -8/Garrison | Garrison Relay disabled 4105 | -8/Garrison | Allies destroyed B-75 Beast 4161 | -8/Garrison | Entered Materials 4161 | -8/Materials | Accompanied by 2 allies 4161 | -8/Materials | Discovered exit to Storage (range 15) 4561 | -8/Materials | First assault squad dispatched 4668 | -8/Materials | Entered Storage 4668 | -8/Storage | Accompanied by 1 ally 5232 | -8/Storage | Garrison activated, responded to threat 5313 | -8/Storage | Identified exit to Garrison 5313 | -8/Storage | Entered Garrison 5483 | -8/Garrison | Rescued a captive Derelict 5484 | -8/Garrison | Rescued a captive Derelict 5509 | -8/Garrison | Triggered checkpoint 5525 | -8/Garrison | Garrison Relay disabled 5625 | -8/Garrison | Triggered checkpoint 5715 | -8/Garrison | Lost 3 allies 5761 | -8/Garrison | Discovered new exit (range 11) 5761 | -8/Garrison | Discovered new exit (range 69) 5761 | -8/Garrison | Discovered new exit (range 66) 5809 | -8/Garrison | Triggered checkpoint 5847 | -8/Garrison | Garrison Relay disabled 5854 | -8/Garrison | Garrison Relay disabled 5939 | -8/Garrison | Triggered checkpoint 5939 | -8/Garrison | Triggered checkpoint 5972 | -8/Garrison | Core integrity fell below 50% 6175 | -8/Garrison | Build established: Scavenger-Gunner 6224 | -8/Garrison | Garrison Relay disabled 6410 | -8/Garrison | Triggered checkpoint 6554 | -8/Garrison | Entered Factory 6554 | -7/Factory | Evolved 2 slots: Propulsion x1, Weapon x1 6967 | -7/Factory | Discovered new exit (range 8) 7048 | -7/Factory | Identified exit to Garrison 7048 | -7/Factory | Entered Garrison 7116 | -7/Garrison | Triggered checkpoint 7147 | -7/Garrison | Garrison Relay disabled 7192 | -7/Garrison | Triggered checkpoint 7283 | -7/Garrison | Triggered checkpoint 7441 | -7/Garrison | Found embedded Infiltrators 7620 | -7/Garrison | Triggered checkpoint 7639 | -7/Garrison | Garrison Relay disabled 7685 | -7/Garrison | Discovered new exit (range 3) 7703 | -7/Garrison | Phase Generator disabled 7865 | -7/Garrison | Triggered checkpoint 7943 | -7/Garrison | Discovered new exit (range 14) 8040 | -7/Garrison | Triggered checkpoint 8119 | -7/Garrison | Rescued a captive Derelict 8263 | -7/Garrison | Build established: Scavenger-Tank 8272 | -7/Garrison | Attempted to access garrison exit controls, blocked by remote lockdown 8375 | -7/Garrison | Entered Factory 8375 | -6/Factory | Accompanied by 1 ally 8375 | -6/Factory | Evolved 2 slots: Propulsion x1, Utility x1 8804 | -6/Factory | Build established: Scavenger-Skirmisher 9373 | -6/Factory | Build established: Scavenger-Gladiator 9536 | -6/Factory | Lost 7 parts (1p5n1w) 9549 | -6/Factory | Discovered new exit (range 14) 9623 | -6/Factory | Identified exit to Lower Caves 9624 | -6/Factory | Entered Lower Caves 9654 | -6/Lower Caves | Attracted the attention of an 0b10 checkpoint 9682 | -6/Lower Caves | Met a Warlord Commander 9683 | -6/Lower Caves | Learned location of Warlord (-5) 9684 | -6/Lower Caves | Warlord Commander delivered Encrypted Comm Array 9688 | -6/Lower Caves | Found Encrypted Comm Array 9742 | -6/Lower Caves | Identified exit to Lower Caves 9867 | -6/Lower Caves | Spotted B-75 Beast 9882 | -6/Lower Caves | Learned Factory garrison access intel 9897 | -6/Lower Caves | Encountered a Warlord checkpoint 9898 | -6/Lower Caves | Entered another Lower Caves area 9910 | -6/Lower Caves | Attacked by a faux Warlord 10511 | -6/Lower Caves | Encountered a Warlord checkpoint 10550 | -6/Lower Caves | Learned Factory terminal intel 10740 | -6/Lower Caves | Discovered new exit (range 6) 10744 | -6/Lower Caves | Identified exit to Zion 10745 | -6/Lower Caves | Entered Zion 10847 | -6/Zion | Gained Derelict followers 10891 | -6/Zion | Discovered new exit (range 10) 10943 | -6/Zion | System corruption cleaned by Quarantine Array 11038 | -6/Zion | Gained Derelict followers 11096 | -6/Zion | Found Prototype Special Weapon 11098 | -6/Zion | Found Prototype Special Weapon 11101 | -6/Zion | Found Prototype Special Weapon 11103 | -6/Zion | Found Prototype Special Weapon 11149 | -6/Zion | Received a hallucinogenic algorithm 11351 | -6/Zion | Learned Factory garrison access intel 11380 | -6/Zion | Found Prototype Energy Gun 11380 | -6/Zion | Identified Storm Laser 11457 | -6/Zion | Learned location of 1 exit from Factory 11562 | -6/Zion | Given the Hacking Drone Bay 11562 | -6/Zion | Found Prototype Device 11846 | -6/Zion | Visited the Megawrench Repair Shop 11846 | -6/Zion | Megawrench repaired 13 parts 12098 | -6/Zion | Entered Proximity Caves 12098 | -5/Proximity Caves | Accompanied by 7 allies 12316 | -5/Proximity Caves | Identified RU-N14's Throwing Claymores (x4) 12370 | -5/Proximity Caves | Identified Hacking Drone Bay 12438 | -5/Proximity Caves | Discovered new exit (range 12) 12450 | -5/Proximity Caves | Spotted B-75 Beast 12462 | -5/Proximity Caves | Learned Factory stockpile data 12469 | -5/Proximity Caves | Entered Factory 12469 | -5/Factory | Accompanied by 5 allies 12469 | -5/Factory | Evolved 2 slots: Power x1, Utility x1 12470 | -5/Factory | Identified exit to Factory 12472 | -5/Factory | Loaded intel: 25 terminal locations 12473 | -5/Factory | Loaded intel: 4 garrison access locations 12677 | -5/Factory | Lost 4 allies 13153 | -5/Factory | Build established: Gladiator 13231 | -5/Factory | Discovered exit to Factory (range 4) 13567 | -5/Factory | System corruption reached 10% 13596 | -5/Factory | Crushed by falling debris 13596 | -5/Factory | System corruption reached 30% 13602 | -5/Factory | Crushed by falling debris 13633 | -5/Factory | Lost 3 parts (1n1u1w) 13666 | -5/Factory | Identified exit to Upper Caves 13755 | -5/Factory | Discovered exit to Factory (range 5) 13854 | -5/Factory | Lost 4 parts (1p1n1u1w) 13866 | -5/Factory | Destroyed 11 combat bots 13990 | -5/Factory | Entered Upper Caves 14119 | -5/Upper Caves | Learned Factory terminal intel 14128 | -5/Upper Caves | Build established: Scavenger-Mutant 14320 | -5/Upper Caves | Discovered new exit (range 12) 14333 | -5/Upper Caves | Identified exit to Upper Caves 14334 | -5/Upper Caves | Entered another Upper Caves area 14496 | -5/Upper Caves | Discovered new exit (range 16) 14502 | -5/Upper Caves | Attracted the attention of an 0b10 outpost 14577 | -5/Upper Caves | Identified exit to Warlord 14578 | -5/Upper Caves | Entered Warlord 14629 | -5/Warlord | System corruption cleaned by Quarantine Array 14942 | -5/Warlord | Found Prototype Special Weapon 14942 | -5/Warlord | Identified RU-N14's Throwing Claymores v3 14945 | -5/Warlord | Found RU-N14's Throwing Claymores v3 14948 | -5/Warlord | Found RU-N14's Throwing Claymores v3 14951 | -5/Warlord | Found RU-N14's Throwing Claymores v3 14953 | -5/Warlord | Found RU-N14's Throwing Claymores v3 14957 | -5/Warlord | Found RU-N14's Throwing Claymores v3 15245 | -5/Warlord | Build established: Scavenger-Gunner 15255 | -5/Warlord | Warlord's base attacked by MAIN.C 15310 | -5/Warlord | Found Prototype Reactor 15326 | -5/Warlord | Found Prototype Hackware 15332 | -5/Warlord | Found Prototype Processor 15332 | -5/Warlord | Identified Exp. Armor Integrity Analyzer 15335 | -5/Warlord | Found Prototype Device 15335 | -5/Warlord | Identified Thermal Barrier 15344 | -5/Warlord | Identified Vortex Chain Reactor 15351 | -5/Warlord | Found Prototype Device 15429 | -5/Warlord | Identified Exp. Phase Shifter 15437 | -5/Warlord | Found Prototype Energy Gun 15437 | -5/Warlord | Identified Vortex Shotgun 15439 | -5/Warlord | Found Vortex Shotgun 15446 | -5/Warlord | Identified Ghost Barrier 15448 | -5/Warlord | Found Prototype Energy Cannon 15450 | -5/Warlord | Found Prototype Energy Cannon 15456 | -5/Warlord | Identified Vortex Driver (x2) 15457 | -5/Warlord | Found Prototype Launcher 15605 | -5/Warlord | Warlord forces counterattacked 15608 | -5/Warlord | Met Warlord 15685 | -5/Warlord | Found Corrupted Prototype Ballistic Cannon 15688 | -5/Warlord | Spotted Striker 15692 | -5/Warlord | Spotted Executioner 15730 | -5/Warlord | Lost 4 allies 15740 | -5/Warlord | Found Prototype Ballistic Cannon 15746 | -5/Warlord | Found Prototype Ballistic Cannon 15754 | -5/Warlord | Destroyed 11 combat bots 15756 | -5/Warlord | Spotted Striker 15761 | -5/Warlord | Destroyed Striker 15765 | -5/Warlord | Spotted Striker 15768 | -5/Warlord | Spotted Striker 15774 | -5/Warlord | Destroyed Striker 15780 | -5/Warlord | Destroyed Striker 15784 | -5/Warlord | Discovered new exit (range 15) 15797 | -5/Warlord | Entered Proximity Caves 15819 | -4/Proximity Caves | Destroyed 14 combat bots 15969 | -4/Proximity Caves | Build established: Scavenger-Tank 16076 | -4/Proximity Caves | Spotted B-86 Titan 16150 | -4/Proximity Caves | Learned 4 Research zone layouts 16423 | -4/Proximity Caves | Identified Hvy. Autocannon (x2) 16447 | -4/Proximity Caves | Entered Factory 16447 | -4/Factory | Evolved 2 slots: Propulsion x1, Utility x1 16448 | -4/Factory | Identified exit to Extension 16449 | -4/Factory | Loaded intel: 27 terminal locations 16450 | -4/Factory | Loaded intel: 4 garrison access locations 16747 | -4/Factory | Identified Vortex Catalyst Activator 16812 | -4/Factory | Identified exit to Upper Caves 16812 | -4/Factory | Identified exit to Armory 16947 | -4/Factory | First assault squad dispatched 16954 | -4/Factory | Build established: Hacker-Tank 16995 | -4/Factory | Entered Extension 17056 | -4/Extension | Rescued a captive Derelict 17108 | -4/Extension | Rescued a captive Derelict 17137 | -4/Extension | Rescued A7 17226 | -4/Extension | Rescued a captive Derelict 17227 | -4/Extension | Rescued a captive Derelict 17417 | -4/Extension | Rescued a captive Derelict 17418 | -4/Extension | Rescued a captive Derelict 17467 | -4/Extension | Rescued a captive Derelict 17572 | -4/Extension | Rescued a captive Derelict 17573 | -4/Extension | Rescued a captive Derelict 17926 | -4/Extension | Spotted B-86 Titan 17939 | -4/Extension | Allies destroyed B-86 Titan 17945 | -4/Extension | Spotted B-86 Titan 17963 | -4/Extension | Allies destroyed B-86 Titan 18083 | -4/Extension | Discovered new exit (range 15) 18088 | -4/Extension | Discovered new exit (range 15) 18115 | -4/Extension | Disrupted transfer network 18121 | -4/Extension | Entered Cetus 18121 | -4/Cetus | Accompanied by 10 allies 18135 | -4/Cetus | Spotted Cetus Guard 18135 | -4/Cetus | Spotted Cetus Guard 18137 | -4/Cetus | Spotted Cetus Guard 18137 | -4/Cetus | Spotted Cetus Guard 18143 | -4/Cetus | Allies destroyed Cetus Guard 18154 | -4/Cetus | Destroyed Cetus Guard 18160 | -4/Cetus | Allies destroyed Cetus Guard 18165 | -4/Cetus | Allies destroyed Cetus Guard 18178 | -4/Cetus | Lost 4 allies 18181 | -4/Cetus | Cetus Manufacturing Module disabled 18226 | -4/Cetus | Discovered new exit (range 16) 18253 | -4/Cetus | Spotted Cetus Guard 18253 | -4/Cetus | Spotted Cetus Guard 18261 | -4/Cetus | Spotted Cetus Guard 18261 | -4/Cetus | Spotted Cetus Guard 18267 | -4/Cetus | Destroyed Cetus Guard 18274 | -4/Cetus | Destroyed Cetus Guard 18279 | -4/Cetus | Allies destroyed Cetus Guard 18282 | -4/Cetus | Destroyed Cetus Guard 18292 | -4/Cetus | Discovered new exit (range 16) 18298 | -4/Cetus | Met Revision 17 18309 | -4/Cetus | Lost 4 allies 18358 | -4/Cetus | Entered Archives 18358 | -4/Archives | Accompanied by 3 allies 18426 | -4/Archives | Discovered new exit (range 15) 18485 | -4/Archives | Discovered new exit (range 15) 18584 | -4/Archives | Build established: Scavenger-Tank 18612 | -4/Archives | Discovered new exit (range 16) 18807 | -4/Archives | Entered Research 18807 | -3/Research | Evolved 2 slots: Utility x2 18808 | -3/Research | Identified exit to Research 19363 | -3/Research | Destroyed 9 combat bots 19539 | -3/Research | Discovered exit to Research (range 12) 19557 | -3/Research | First assault squad dispatched 19587 | -3/Research | Garrison activated, responded to threat 19597 | -3/Research | Entered another Research area 19597 | -2/Research | Warlord forces began assault on 0b10 19597 | -2/Research | Evolved 2 slots: Power x1, Utility x1 19613 | -2/Research | Lost 3 parts (1u2w) 19622 | -2/Research | Distinguished unit "Metalheads" dispatched to help 19622 | -2/Research | Distinguished unit "Lobotomizers" dispatched to help 19707 | -2/Research | Research machine network offline 19979 | -2/Research | Discovered new exit (range 13) 20038 | -2/Research | Identified exit to Access 20064 | -2/Research | Borebot progress halted 20480 | -2/Research | Discovered exit to Access (range 15) 20514 | -2/Research | Borebot progress halted 20552 | -2/Research | Lost 4 allies 20674 | -2/Research | Found Powered Armor 20733 | -2/Research | Found Prototype Device 20733 | -2/Research | Identified Exp. Actuator Array 20815 | -2/Research | Discovered new exit (range 16) 20842 | -2/Research | Identified exit to Testing 21100 | -2/Research | Given Cave Seal Controls access code 21207 | -2/Research | System corruption reached 10% 21226 | -2/Research | Entered Access 21226 | -1/Access | Evolved 2 slots: Power x1, Utility x1 21294 | -1/Access | Lost 3 allies 21502 | -1/Access | Build established: Generator-Tank 21607 | -1/Access | Identified exit to Command 21607 | -1/Access | Watched by a mysterious "MATRIX" hacker 21876 | -1/Access | Lost 4 parts (2p2u) 21976 | -1/Access | First assault squad dispatched 22027 | -1/Access | Garrison activated, responded to threat 22244 | -1/Access | Found Prototype Device 22244 | -1/Access | Identified Exp. Shock Absorption System 22413 | -1/Access | System corruption reached 10% 22593 | -1/Access | Entered Command 22778 | -1/Command | Disengaged cave seal 22778 | -1/Command | Welcomed Warlord to Command 23067 | -1/Command | Spotted M Guard 23069 | -1/Command | Spotted M Guard 23069 | -1/Command | Spotted Combat Programmer 23070 | -1/Command | Warlord commented on Warlord statues 23072 | -1/Command | Spotted Combat Programmer 23087 | -1/Command | Destroyed M Guard 23087 | -1/Command | Destroyed Combat Programmer 23090 | -1/Command | Destroyed M Guard 23090 | -1/Command | All MAIN.C guards destroyed 23093 | -1/Command | First assault squad dispatched 23116 | -1/Command | Lost 4 allies 23236 | -1/Command | Met MAIN.C 23238 | -1/Command | Warlord shut down involuntarily 23241 | -1/Command | 0b10 Conduit disabled 23256 | -1/Command | Destroyed MAIN.C Shell 23259 | -1/Command | MAIN.C activated Command garrisons 23304 | -1/Command | Destroyed MAIN.C 23306 | -1/Command | Lost 4 allies 23335 | -1/Command | Discovered new exit (range 29) 23335 | -1/Command | Discovered new exit (range 103) 23335 | -1/Command | Extracted map data and part IDs from MAIN.C's data core 23480 | -1/Command | Crushed by falling debris 23487 | -1/Command | Crushed by falling debris 23534 | -1/Command | Crushed by falling debris 23576 | -1/Command | Build established: Generator-Mutant 23583 | -1/Command | Crushed by falling debris 23652 | -1/Command | Crushed by falling debris 23666 | -1/Command | Crushed by falling debris 23696 | -1/Command | Crushed by falling debris 23751 | -1/Command | Crushed by falling debris 23759 | -1/Command | Crushed by falling debris 23759 | -1/Command | System corruption reached 30% 23790 | -1/Command | Lost 3 parts (3u) 23799 | -1/Command | Crushed by falling debris 23820 | -1/Command | Crushed by falling debris 23856 | -1/Command | Crushed by falling debris 23881 | -1/Command | Spotted B-99 Colossus 23909 | -1/Command | Lost 8 parts (2p4u2w) 23931 | -1/Command | Crushed by falling debris 23931 | -1/Command | Core integrity fell below 50% 23943 | -1/Command | Crushed by falling debris 23974 | -1/Command | Lost 3 parts (1n2u) 24137 | *** | Establishing 0b11! Last Messages --------------- 24039_ Imp. System Restoration Module purges 1% system corruption (45%). 24043_ System corrupted: Energy discharge (-272). 24044_ Imp. System Restoration Module purges 1% system corruption (44%). 24045_ Acquired 40 matter. 24056_ Imp. System Restoration Module purges 1% system corruption (43%). 24056_ Imp. System Restoration Module expended. 24061_ 2U4M4T3C1Y9MJ7 S 4SRRKE 24076_ System corrupted: FCS attempts to trigger Enh. Quantum Rifle. 24076_ System corrupted: Enh. Quantum Rifle misfires. 24092_ System corrupted: Heat flow error (+224). 24107_ XZGK#E|GH70VUJG23QDR56ZC= Y 24122_ System corrupted: Heat flow error (+207). 24137_ System corrupted: Component data lost. [Achievement: 75k Club] [Achievement: Commander 0b11] Map ----- +----------------------------------------------------+ | ???# [!%! """" #?# # "" #????????? | | #### =%= "" ### # "" #????????? | | # ![ # "" #????????? | | # # "Y #????????? | | # % + "" #????????? | | # ### ####### ##+### "" #????????? | | +### #?# #?????# # ## "" #????????? | | ## #?# #?????# """ # ## #????????? | | ## ###+#####?# """ # ## #?######## | | * ## ## #?# R" # ## #?#??????? | | ## ## #?# """ # * ## ! ! #?#?###### | | ## + ### "" # #########?#?#""""" | | ## ## ]# # #?????????#?#"" | | ## ## # #####?????????#?#""""" | | ## ## ### #?????????????#?#""""" | | # ##+####### ##########?????????????#?#" " | | + ##" ##?????????????????????###"" " | | # ## = #?????????????????????# # | | # ##### ## = #?????????????????????# # | | ####+####### ## % #?????????????????????# | | ?# ## ## % %#???????########??????### | | ?# ## ##" ##???????# #??????#?# | | ?# ## %= #????????# #??????#?# | | ?# [ ## [ %#???###### #??????#?# | | ?# ## % ##??# ## ###????#?# | | ?#" ## "#### @ ## #"######## | | ?#"" ## ^ ## # | | ?#"" ## ^ ## +% | | ?#"" ## "############## " | | ?#"" ## ##???????????## # ###"#### "" | | ?#"T ## ##############" % # #?####?# " | | ?#"" + """ " # #????#?# | | ?#"" ## + ! " = # #????#?###### | | ?#"" ## ### % # #!#????#??????? | | ?#"" ## #?#%! ######## #????######## | | ?#" ## #?# #??????#%#???????????? | | ?# ## ### ""T " #??????#=#???????????? | | ?# ## + """" #?????##%##??????????? | | ?##+######## #####+######+######## #??????????? | | ??# #??????# ## + #??????????? | | ###+####???# ## # ######## #??????????? | | #???# ## # # ]#?## ##??????????? | | #???# ## # # #### #???????????? | | "" #???# ## # #!! + #???????????? | | """" #???# ######+#### #! # ####???????????? | | """" #???# #???# ^ # # #??????????????? | | "" #???# #???#^ # # #??????????????? | | #???# #???#^^ ###### #??????????????? | | #???# #???# == ##?###+#######????????? | | #####%###### ##### =[ #?# #????????? | +----------------------------------------------------+ Best States ------------- Heat Dissipation 145 Coolant Potential 80 Energy Generation 118 Energy Capacity 1100 Matter Stores 300 Matter Capacity 300 Sight Range 22 Robot Scan Range 16 Terrain Scan Range 20 Terrain Scan Density 210 ECM Strength 1 Power Amplification 40 EM Shielding 3 Armor Coverage 825 Resistance: KI 30 Resistance: TH 50 Resistance: EX 75 Melee Speed Boost 20 Phase Shifting 20 Evasion (%) 84 Melee Accuracy 16 Target Analysis 8 Recoil Reduction 6 Matter Filtering 30 Kinecelleration 40 Offensive Hacking 40 Defensive Hacking 20 Item Schematics ----------------- Adv. VSS Leg | -6/Factory | Scanalyzed Imp. Medium Treads | -6/Zion | Archive Mass Driver | -6/Zion | Archive Imp. Particle Charger | -6/Zion | Archive Mni. Drone Bay | -6/Zion | Archive Phase Cannon | -6/Zion | Archive Imp. Plasma Cutter | -6/Zion | Archive Coil Gun | -6/Zion | Archive Matter Neutralizer | -6/Zion | Archive Dispersion Rifle | -6/Zion | Archive Angular Momentum Engine | -6/Zion | Archive Imp. Recalibrator | -6/Zion | Archive Adv. Hacking Suite | -6/Zion | Archive Imp. Thermal Generator | -6/Zion | Archive Hvy. Shock Bomb Launcher | -6/Zion | Archive Med. Armored Exoskeleton | -5/Factory | Scanalyzed Enh. Biometal Leg | -4/Factory | Scanalyzed Lrg. Storage Unit | -4/Factory | Scanalyzed Robot Schematics ------------------ G-50 Soldier | -6/Zion | Archive A-15 Conveyor | -6/Zion | Archive L-41 Fighter | -6/Zion | Archive Fabricated ------------ Nothing Repaired ---------- Med. Laser | 17% | -10/Materials Imp. Treads | 14% | -9/Materials Cld. Ion Engine | 9% | -9/Materials Adv. Beam Cannon | 35% | -9/Materials Imp. Medium Laser | 23% | -9/Materials Studied --------- Rnf. Antimatter Reactor | -4/Factory | Hacked Myomer Leg | -4/Factory | Hacked Lrn. Missile Launcher | -4/Factory | Hacked Arm. Leg | -4/Factory | Hacked Med. Armored Exoskeleton | -4/Factory | Hacked Phase Gun | -4/Factory | Hacked Quantum Rifle | -3/Research | Hacked Railgun | -3/Research | Hacked Lgt. Quantum Reactor | -1/Access | Hacked Alien Tech Used ----------------- None Achievements -------------- 75k Club Commander 0b11 Challenges ------------ None Game ------ Seed ThermalOvertunedStick Manual? 0 Play Time 05:26:26 Cumulative 383.5 hours Start 2026.07.31 @ 23:08:38 End 2026.08.01 @ 22:25:53 Sessions 25 Manual Loads 0 Difficulty Rogue Special Mode None Game No. 196 Rogue 196 Adventurer 0 Explorer 0 Win Type 1 Total 8 Types 4/1/1/1/0/0/0/1/0/0 Lore% 71 Gallery% 72 Achievement% 63 Wizard Run 0 Options --------- Layout 1 ASCII 0 Keyboard 0 Movement Mouse Keybinds 0 Fullscreen 1 Font 18/SmallcapsGlow Map View 54x44 Zoom Use 0% Tactical HUD 1 Map Filters NONE Filters NONE Steam 0 RUN: 2f8cf9d4-5472-43d8-9ed7-bd9192da2683